bitfinex/quotes_ETHUSD_20250715
["timestamp","ask_amount","ask_price","bid_price","bid_amount"]
[1752591960940,3.34952269,2985.5,2985.4,0.1672]
[1752591961142,3.34940227,2985.7,2985.2,5.977]
[1752591961459,3.3498593,2985.2,2985.1,0.04]
[1752591961788,3.34963954,2985.4,2985.1,0.04]
[1752591961961,3.34981557,2985.3,2985.1,0.04]
[1752591962282,0.1672,2985.5,2985.1,0.04]
[1752591962439,3.51672681,2985.5,2985.1,0.04]
[1752591962640,0.8538036,2985.5,2985.1,0.04]
[1752591962943,3.34974709,2985.3,2985.1,0.04]
[1752591963160,3.34967125,2985.4,2985.1,0.04]
[1752591963849,3.3498593,2985.2,2985.1,0.04]
[1752591964049,3.51698124,2985.3,2985.1,0.04]
[1752591964356,0.1672,2985.3,2985.1,0.04]
[1752591964945,3.34978153,2985.3,2985.1,0.04]
[1752591965139,0.4471,2985.3,2985.1,0.04]
[1752591965379,0.1672,2985.3,2985.1,0.04]
[1752591965682,3.51697047,2985.3,2985.1,0.04]
[1752591966091,3.3498593,2985.2,2985.1,0.04]
[1752591966258,3.51695904,2985.3,2985.1,0.04]
[1752591966447,3.51699161,2985.3,2985.1,0.04]
[1752591966643,3.3498593,2985.2,2985.1,0.04]
[1752591966848,3.35019598,2984.9,2983.5,1.5282]
[1752591967060,5.03858183,2984.2,2983.7,0.1672]
[1752591969571,3.35081883,2984.4,2983.9,0.1672]
[1752591969770,0.1672,2984.5,2983.9,0.1672]
[1752591970084,0.1672,2984.5,2984.0,3.35113109]
[1752591970285,0.1672,2984.5,2983.9,0.1672]
[1752591970487,3.35043432,2984.7,2984.2,0.1672]
[1752591970488,0.1672,2984.7,2984.2,0.1672]
[1752591970688,3.51769347,2984.7,2984.2,0.1672]
[1752591970892,0.1672,2984.7,2984.2,0.1672]
[1752591971103,0.4471,2984.6,2984.2,0.1672]
[1752591971251,0.4471,2984.6,2983.6,1.4215]
[1752591971454,0.1672,2984.8,2984.2,0.1672]
[1752591971770,0.1672,2984.8,2984.3,3.35083876]
[1752591971990,0.1672,2984.8,2984.4,3.3507569]
[1752591972288,1.8893,2985.5,2984.5,0.4587]
[1752591972459,0.1672,2985.1,2984.6,3.51768348]
[1752591972656,0.04,2985.9,2985.0,3.35008375]
[1752591972657,1.9396,2985.9,2985.0,3.35008375]
[1752591972913,3.51678131,2985.5,2985.0,0.1672]
[1752591973201,3.51676747,2985.5,2985.0,0.1672]
[1752591973357,0.1672,2985.5,2985.0,0.1672]
[1752591973994,2.13356,2985.9,2984.7,0.1672]
[1752591973995,3.35003144,2985.1,2984.7,0.1672]
[1752591974194,3.35002283,2985.1,2984.7,0.1672]
[1752591974495,3.35047773,2984.7,2984.0,3.35114049]
[1752591974680,3.3506024,2984.6,2984.3,0.1672]
[1752591974881,0.1672,2984.8,2984.3,0.1672]
[1752591975193,10.0,2985.0,2984.4,0.4587]
[1752591975400,0.1672,2985.0,2984.5,0.1672]
[1752591975701,0.1672,2985.5,2984.9,0.1672]
[1752591975895,3.34938062,2985.7,2984.9,0.1672]
[1752591976199,3.3495972,2985.5,2985.2,0.1672]
[1752591976359,3.34945177,2985.6,2985.2,0.1672]
[1752591976700,0.1672,2985.7,2985.2,0.1672]
[1752591976901,3.34959936,2985.5,2985.2,0.1672]
[1752591977198,3.34967769,2985.4,2985.2,0.1672]
[1752591977496,3.34967769,2985.4,2984.7,3.35037189]
[1752591977497,0.1672,2985.2,2984.7,3.35037189]
[1752591977662,0.1672,2985.2,2984.9,0.1672]
[1752591977855,0.1672,2985.2,2985.0,0.31138149]
[1752591978055,0.1672,2985.2,2985.1,0.31138149]
[1752591978482,0.1672,2985.7,2985.1,0.47858149]
[1752591978661,3.34963534,2985.4,2985.2,0.31138149]
[1752591978864,3.34951645,2985.6,2985.3,0.31138149]
[1752591979187,0.04,2985.9,2985.4,0.31138149]
[1752591979374,10.0,2985.7,2985.5,0.31174884]
[1752591979557,13.34931537,2985.7,2985.6,0.31174884]
[1752591980398,43.34931537,2985.7,2985.6,0.31174884]
[1752591980698,10.0,2985.6,2984.6,1.4756]
[1752591980905,13.34969342,2985.4,2984.7,0.31212774]
[1752591981068,3.34982562,2985.3,2984.8,0.31212311]
[1752591981399,3.34952269,2985.5,2984.6,1.4756]
[1752591981400,3.35006702,2985.1,2984.9,0.31212311]
[1752591981602,3.35006702,2985.1,2985.0,0.31212311]
[1752591981902,3.34997152,2985.1,2985.0,0.31212311]
[1752591982196,33.34997152,2985.1,2985.0,0.31212311]
[1752591982407,30.0,2985.1,2985.0,0.31212311]
[1752591982709,3.34997152,2985.1,2985.0,0.31212311]
[1752591983704,34.80697152,2985.1,2985.0,0.31212311]
[1752591984490,4.80697152,2985.1,2985.0,0.31212311]
[1752591985308,9.30597152,2985.1,2985.0,0.31212311]
[1752591986307,9.30397152,2985.1,2985.0,0.31212311]
[1752591986631,3.34991012,2985.2,2985.0,0.31212311]
[1752591986794,13.34991012,2985.2,2985.1,0.31212311]
[1752591986996,3.35004807,2985.1,2984.5,3.35059135]
[1752591987199,13.34990946,2985.2,2984.6,3.66326931]
[1752591987394,9.30278066,2985.3,2984.7,3.66308545]
[1752591987638,5.953,2985.3,2984.8,0.31273907]
[1752591987938,3.35019598,2984.9,2984.2,1.5619]
[1752591988240,3.35036433,2984.8,2984.3,0.31277649]
[1752591988444,13.3498593,2985.2,2984.4,0.31277649]
[1752591988606,3.35035713,2984.8,2984.5,0.31277649]
[1752591988942,13.3498593,2985.2,2984.6,0.31277649]
[1752591988943,10.0,2985.2,2984.6,0.31277649]
[1752591989244,3.35030822,2984.8,2984.7,0.31277649]
[1752591990102,0.1672,2984.9,2984.7,0.31277649]
[1752591990333,3.51740056,2984.9,2984.4,0.1672]
[1752591990516,3.35032211,2984.8,2984.5,0.31301067]
[1752591990737,3.51743023,2984.9,2984.6,0.31301067]
[1752591990934,3.35031489,2984.8,2984.7,0.31301067]
[1752591991113,3.35031489,2984.8,2984.7,0.31302392]
[1752591991311,34.82480822,2984.8,2984.7,0.31302392]
[1752591991649,44.82480822,2984.8,2984.7,0.31302392]
[1752591992454,50.77380822,2984.8,2984.7,0.31302392]
[1752591993324,44.82480822,2984.8,2984.7,0.31302392]
[1752591993653,50.77380822,2984.8,2984.7,0.31302392]
[1752591994942,3.35171555,2983.6,2983.2,1.4795]
[1752591995738,3.35171555,2983.6,2982.9,0.002]
[1752591995739,3.3518804,2983.4,2982.9,0.002]
[1752591995942,30.0,2983.5,2982.9,0.002]
[1752591995943,10.0,2983.8,2982.9,0.002]
[1752591996150,3.35201258,2983.3,2982.9,0.002]
[1752591996471,3.35210512,2983.2,2982.9,0.002]
[1752591996845,13.35210512,2983.2,2982.9,0.002]
[1752591998170,19.29710512,2983.2,2982.9,0.002]
[1752591998549,5.943,2983.3,2982.9,0.002]
[1752591998877,10.0,2983.6,2983.1,1.6036]
[1752591998878,5.943,2983.5,2983.1,1.6036]
[1752591999179,3.35196622,2983.4,2983.1,1.6036]
[1752591999413,5.943,2983.5,2983.1,1.6036]
[1752591999565,1.5423,2984.1,2983.1,1.6036]
[1752591999766,3.35108043,2984.2,2983.4,3.35180188]
[1752592000065,1.4538,2985.2,2983.5,0.36869787]
[1752592000264,30.0,2985.1,2983.6,1.5636]
[1752592000495,5.942,2985.0,2984.0,3.35112133]
[1752592000668,3.35048671,2984.7,2984.1,3.38460155]
[1752592000864,3.35048671,2984.7,2983.7,3.38502203]
[1752592001066,3.3509971,2984.2,2983.6,1.5636]
[1752592001263,13.51788968,2984.5,2984.0,0.1672]
[1752592001593,3.35117708,2984.1,2983.7,0.1672]
[1752592001886,0.1672,2984.2,2983.7,0.1672]
[1752592001887,3.35143106,2983.8,2983.7,0.1672]
[1752592002087,0.1672,2984.2,2983.7,0.1672]
[1752592002293,3.35121731,2984.0,2983.7,0.1672]
[1752592002491,3.35134224,2983.9,2983.7,0.1672]
[1752592002678,0.1672,2984.2,2983.7,0.1672]
[1752592002992,13.35069386,2984.5,2984.1,0.1672]
[1752592003210,3.35039018,2984.8,2983.9,3.35131874]
[1752592003392,1.5326,2984.9,2983.9,3.35131874]
[1752592003393,5.939,2984.6,2984.3,0.1672]
[1752592003556,13.35043951,2984.7,2984.3,0.1672]
[1752592003904,0.1672,2984.9,2984.4,1.5621]
[1752592004051,1.5326,2985.3,2984.5,0.1672]
[1752592004052,0.1672,2985.0,2984.5,0.1672]
[1752592004496,3.35025663,2984.9,2984.5,0.1672]
[1752592004672,3.51732564,2985.0,2984.5,0.1672]
[1752592005184,0.001,2984.8,2984.5,0.1672]
[1752592008401,0.001,2984.8,2984.6,3.35045008]
[1752592008599,0.001,2984.8,2984.7,3.51762047]
[1752592009179,0.001,2984.8,2984.7,3.55112467]
[1752592009369,0.001,2984.8,2984.7,5.59002467]
[1752592010805,0.001,2984.8,2984.7,11.52002467]
[1752592011011,0.001,2984.8,2984.7,13.02471145]
[1752592011187,0.04,2985.9,2985.8,3.34918614]
[1752592011398,0.04,2985.9,2985.8,3.549878]
[1752592011585,0.04,2985.9,2985.8,9.477878]
[1752592011789,0.04,2985.9,2985.8,9.44438614]
[1752592012101,0.04,2985.9,2985.8,11.24547208]
[1752592012506,0.04,2985.9,2985.8,1.96828594]
[1752592012705,0.04,2985.9,2985.8,2.0017778]
[1752592013016,0.04,2985.9,2985.8,1.96828594]
[1752592013227,0.04,2985.9,2985.8,1.7159]
[1752592013427,0.04,2985.9,2985.8,5.34613767]
[1752592013924,0.04,2985.9,2985.8,6.11437382]
[1752592014126,0.04,2985.9,2985.8,6.66437382]
[1752592014608,0.04,2985.9,2985.8,6.63088196]
[1752592014803,0.04,2985.9,2985.8,6.66437382]
[1752592016393,0.04,2985.9,2985.8,16.66437382]
[1752592016593,0.001,2986.6,2986.5,3.34840113]
[1752592016797,0.001,2986.6,2986.5,10.75868514]
[1752592017030,0.001,2986.6,2986.5,12.30312071]
[1752592017216,0.001,2986.6,2986.5,12.85312071]
[1752592017940,0.001,2986.6,2986.5,22.85312071]
[1752592019463,0.001,2986.7,2986.6,5.36018902]
[1752592019615,0.001,2986.7,2986.6,5.39367191]
[1752592019815,0.001,2986.7,2986.6,8.35262224]
[1752592020058,0.001,2986.7,2986.6,8.31913935]
[1752592020237,0.001,2986.7,2986.6,4.81018902]
[1752592020442,0.001,2986.7,2986.6,1.4619]
[1752592020639,0.001,2986.7,2986.5,0.1672]
[1752592021061,0.001,2986.7,2986.5,3.51559587]
[1752592021221,0.001,2986.7,2986.6,9.29577191]
[1752592021429,0.001,2986.7,2986.6,12.5237258]
[1752592022570,0.001,2986.7,2986.6,22.5237258]
[1752592023232,1e-08,2986.9,2986.8,15.47196481]
[1752592023434,0.001,2987.1,2987.0,10.55]
[1752592023435,1e-08,2987.1,2987.0,10.55]
[1752592023784,1e-08,2987.1,2987.0,21.28254064]
[1752592023997,1e-08,2987.1,2987.0,23.74558998]
[1752592024487,1e-08,2987.1,2987.0,17.83458998]
[1752592024655,1e-08,2987.1,2987.0,23.74458998]
[1752592025758,1e-08,2987.4,2987.3,15.38800443]
[1752592025987,0.001,2987.6,2987.5,15.38778033]
[1752592025988,1e-08,2987.6,2987.5,15.38778033]
[1752592026171,1e-08,2987.6,2987.5,24.65144247]
[1752592026512,1e-08,2988.3,2988.2,15.46699621]
[1752592026721,1e-08,2988.3,2988.2,21.37299621]
[1752592026923,1e-08,2988.3,2988.2,21.61948462]
[1752592027088,0.001,2988.8,2988.7,5.46643636]
[1752592027269,0.001,2988.8,2988.7,12.28714435]
[1752592027507,0.001,2988.8,2988.7,12.25368499]
[1752592027692,0.001,2988.8,2988.7,12.25268499]
[1752592028314,0.001,2988.8,2988.7,2.1205]
[1752592028466,0.001,2988.8,2988.2,10.24648841]
[1752592028467,0.001,2988.8,2988.3,1.5032]
[1752592028779,0.001,2988.8,2988.2,0.24648841]
[1752592028984,3.34603432,2988.7,2988.4,5.904]
[1752592029168,0.001,2988.8,2988.4,5.904]
[1752592029370,0.001,2988.8,2988.7,4.84913636]
[1752592029600,0.001,2988.8,2988.7,5.43259572]
[1752592029886,0.001,2988.8,2988.7,7.4042]
[1752592030091,0.001,2988.8,2988.7,5.901]
[1752592030278,0.001,2988.8,2988.7,6.451]
[1752592030472,0.001,2988.8,2988.7,5.901]
[1752592030673,0.001,2988.8,2988.7,5.9]
[1752592030869,0.001,2988.8,2988.7,9.79593636]
[1752592031105,0.001,2988.8,2988.7,10.38928252]
[1752592031684,0.04,2988.9,2988.8,3.34582441]
[1752592031905,0.04,2988.9,2988.8,13.92928265]
[1752592032098,0.04,2988.9,2988.8,17.25248655]
[1752592032365,0.04,2989.9,2989.8,3.89470533]
[1752592032717,0.04,2989.9,2989.8,9.82515238]
[1752592032877,0.04,2989.9,2989.8,5.897]
[1752592033220,0.04,2989.9,2989.8,3.37815238]
[1752592033430,0.04,2989.9,2989.8,10.80568907]
[1752592033603,0.04,2989.9,2989.8,21.02682562]
[1752592034139,0.001,2990.0,2989.9,15.35829346]
[1752592034140,1e-08,2990.0,2989.9,15.35829346]
[1752592034498,1e-08,2990.0,2989.9,21.25329346]
[1752592035390,1e-08,2990.0,2989.9,21.25129346]
[1752592035590,1e-08,2990.0,2989.9,23.83440537]
[1752592035796,1e-08,2990.0,2989.9,17.94140537]
[1752592036020,1e-08,2990.0,2989.9,17.39140537]
[1752592036250,0.001,2990.5,2990.4,13.34403424]
[1752592036429,0.001,2990.5,2990.4,21.29713424]
[1752592036627,0.001,2990.5,2989.9,4.09421191]
[1752592036829,0.001,2990.5,2990.0,5.92444481]
[1752592037184,0.001,2990.5,2989.8,0.2545836]
[1752592037323,3.34405581,2990.4,2989.9,5.891]
[1752592037518,0.001,2990.5,2990.0,3.37787953]
[1752592037720,3.34403703,2990.4,2990.1,5.89]
[1752592038034,3.34403703,2990.4,2989.6,3.34492908]
[1752592038035,0.001,2990.5,2990.2,5.89]
[1752592038252,0.001,2990.5,2990.1,0.03344369]
[1752592038554,3.34414607,2990.3,2989.8,0.25129525]
[1752592038863,3.34444663,2990.1,2989.4,3.34508429]
[1752592039025,1.4265,2990.3,2989.5,9.23303084]
[1752592039222,4.77065551,2990.3,2989.5,5.888]
[1752592039447,3.3446715,2989.9,2989.6,5.92044929]
[1752592039649,3.34455091,2990.0,2989.7,5.887]
[1752592039959,3.344355,2990.2,2989.8,5.887]
[1752592040157,1.4265,2990.3,2989.4,0.03345152]
[1752592040336,4.77072084,2990.3,2989.6,3.34486131]
[1752592040537,3.3442579,2990.2,2989.7,5.91944817]
[1752592040746,0.001,2990.5,2989.8,0.55]
[1752592041059,0.001,2990.5,2990.4,3.34403424]
[1752592041270,0.001,2990.5,2990.4,9.81247458]
[1752592041577,0.001,2990.5,2990.4,5.885]
[1752592041865,0.001,2990.5,2990.4,9.81247458]
[1752592042063,0.001,2990.5,2990.4,0.55]
[1752592042264,0.001,2990.5,2990.4,5.884]
[1752592042559,3.34492242,2990.5,2990.4,5.884]
[1752592042745,0.001,2990.5,2990.4,5.884]
[1752592043259,0.001,2990.5,2990.3,5.884]
[1752592043671,0.001,2990.5,2990.4,5.882]
[1752592043859,0.001,2990.5,2989.4,1.5091]
[1752592044059,1.5306,2990.4,2989.5,11.15091]
[1752592044260,3.34422744,2990.3,2989.6,5.91544929]
[1752592044578,1.5306,2990.4,2990.0,3.34444085]
[1752592044767,1.5306,2990.4,2990.1,0.03344369]
[1752592044967,0.001,2990.5,2990.2,5.881]
[1752592045163,0.001,2990.5,2990.2,9.2252377]
[1752592045362,0.001,2990.5,2990.2,5.881]
[1752592045570,0.001,2990.5,2989.5,1.15091]
[1752592045770,0.001,2990.5,2989.6,9.49091872]
[1752592045966,0.001,2990.5,2990.2,0.1672]
[1752592046167,3.34403424,2990.4,2990.3,5.88]
[1752592046574,3.34494474,2990.5,2990.3,5.88]
[1752592046879,0.001,2990.5,2990.4,3.34403424]
[1752592047086,0.001,2990.5,2990.4,1.29025965]
[1752592047384,0.001,2990.5,2989.9,10.55]
[1752592047585,0.001,2990.5,2990.4,3.89403424]
[1752592047763,0.001,2990.5,2990.4,9.80547458]
[1752592047961,0.001,2990.5,2990.4,9.77203424]
[1752592048367,0.001,2990.5,2990.4,3.89403424]
[1752592048580,0.001,2990.5,2990.4,9.77003424]
[1752592049862,0.001,2990.5,2990.4,3.34403424]
[1752592050081,0.001,2990.5,2990.4,19.80247458]
[1752592050296,0.001,2990.5,2990.4,19.76903424]
[1752592050460,0.001,2990.5,2990.4,21.24813424]
[1752592050662,0.001,2990.5,2990.4,17.83236211]
[1752592050856,0.001,2990.5,2990.4,23.70636211]
[1752592051098,0.001,2990.5,2990.4,17.83236211]
[1752592051308,3.34436975,2990.1,2990.0,0.002]
[1752592051461,46.32263226,2990.1,2990.0,0.002]
[1752592051806,14.82096975,2990.1,2990.0,0.002]
[1752592052010,1.4766,2990.1,2990.0,0.002]
[1752592052162,4.82096975,2990.1,2990.0,0.002]
[1752592052500,1.4766,2990.1,2990.0,0.002]
[1752592052701,0.04,2991.9,2990.4,3.34399861]
[1752592053005,1.465,2991.4,2990.6,0.55]
[1752592053170,1.465,2991.4,2990.8,3.343587]
[1752592053378,1.465,2991.4,2990.5,5.872]
[1752592053379,1.465,2991.4,2990.5,3.34383146]
[1752592053583,1.465,2991.4,2990.8,3.343587]
[1752592053871,1.465,2991.4,2990.8,9.52515211]
[1752592054088,1.465,2991.4,2990.8,3.65415211]
[1752592054264,1.465,2991.4,2990.8,6.18156511]
[1752592054461,1.465,2991.4,2990.8,9.52515211]
[1752592054723,1.465,2991.4,2990.8,10.8120438]
[1752592055000,1.465,2991.4,2990.8,6.18056511]
[1752592055303,1.465,2991.4,2990.8,0.34400098]
[1752592055602,1.465,2991.4,2990.8,6.18056511]
[1752592055760,3.34310652,2991.3,2990.8,6.17956511]
[1752592055963,1.465,2991.4,2990.8,6.17956511]
[1752592056276,1.5363,2991.7,2991.2,3.34311508]
[1752592056474,1.5363,2991.7,2991.3,6.17956511]
[1752592056673,0.04,2991.9,2991.4,0.31056511]
[1752592056873,0.04,2991.9,2991.6,0.1664]
[1752592057074,0.04,2991.9,2991.7,0.31056511]
[1752592057280,0.04,2991.9,2991.8,9.55445921]
[1752592057478,0.04,2991.9,2991.8,10.07103452]
[1752592057709,0.04,2991.9,2991.8,4.20303452]
[1752592058012,0.04,2991.9,2991.8,4.23645921]
[1752592058182,0.04,2991.9,2991.8,10.10345921]
[1752592058366,0.04,2991.9,2991.8,22.36863356]
[1752592058563,0.04,2991.9,2991.8,16.50163356]
[1752592058977,0.04,2991.9,2991.8,22.36763356]
[1752592059491,0.04,2992.9,2991.8,22.36763356]
[1752592059492,0.04,2992.9,2992.1,1.9915]
[1752592059713,0.04,2992.9,2992.7,3.34138531]
[1752592059938,0.04,2992.9,2992.8,3.65191768]
[1752592060091,0.04,2992.9,2992.8,6.17456511]
[1752592061052,0.04,2992.9,2992.8,11.0165218]
[1752592061355,0.04,2992.9,2992.8,5.1535218]
[1752592061524,0.04,2992.9,2992.8,21.04993532]
[1752592061853,0.04,2992.9,2992.8,15.1535218]
[1752592062031,0.04,2992.9,2992.8,21.0165218]
[1752592062538,0.04,2992.9,2992.8,21.01662492]
[1752592062693,1e-08,2993.4,2993.3,3.34079444]
[1752592062897,1e-08,2993.4,2993.3,21.81854211]
[1752592063215,1e-08,2993.9,2993.8,15.31223648]
[1752592063536,0.001,2994.7,2994.6,10.55]
[1752592063751,0.001,2994.7,2994.6,20.06001238]
[1752592063958,0.001,2994.7,2994.6,14.20001238]
[1752592064140,3.34023264,2994.7,2994.6,0.31066823]
[1752592064456,45.2219559,2994.7,2994.6,0.25175747]
[1752592064637,15.2219559,2994.7,2994.6,0.25175747]
[1752592065238,11.5447,2994.7,2994.6,0.25175747]
[1752592065445,14.88393264,2994.7,2994.6,0.25175747]
[1752592065773,44.88393264,2994.7,2994.6,1e-08]
[1752592066059,45.43393264,2994.7,2994.6,1e-08]
[1752592066271,45.43393264,2994.7,2992.1,0.04]
[1752592066272,3.340976,2993.2,2992.5,1.419]
[1752592066455,4.37345628,2993.4,2992.7,5.856]
[1752592066639,1.03268668,2993.4,2992.7,5.856]
[1752592067230,0.1664,2993.3,2992.8,0.1664]
[1752592067470,0.1664,2993.2,2992.7,0.1664]
[1752592067673,3.34134404,2992.9,2992.7,0.1664]
[1752592067882,0.1664,2993.2,2992.7,0.1664]
[1752592068381,3.50732879,2993.2,2992.7,0.1664]
[1752592068578,3.34130739,2992.9,2992.7,0.1664]
[1752592068738,3.34135257,2992.8,2992.7,0.1664]
[1752592069068,3.3411471,2993.0,2992.7,0.1664]
[1752592069271,3.34124105,2992.9,2992.7,0.1664]
[1752592069467,3.34135257,2992.8,2992.7,0.1664]
[1752592069672,2.94004637,2992.8,2992.7,0.1664]
[1752592069867,0.62040155,2993.2,2992.7,0.1664]
[1752592070068,3.34101767,2993.1,2992.7,0.1664]
[1752592070273,0.1664,2993.2,2992.7,0.1664]
[1752592070443,3.34105081,2993.1,2992.7,0.1664]
[1752592070649,0.1664,2993.2,2992.7,3.50781683]
[1752592071207,1.03268668,2993.4,2992.7,3.50781683]
[1752592071208,1.5053,2993.8,2993.2,3.34083715]
[1752592071394,10.0,2993.7,2993.2,3.34083715]
[1752592071707,3.34037806,2993.7,2993.4,0.1664]
[1752592072012,3.34035208,2993.7,2993.4,0.1664]
[1752592072208,3.34038912,2993.7,2993.4,0.1664]
[1752592072372,12.00648744,2993.8,2993.4,0.1664]
[1752592072573,2.00648744,2993.8,2993.3,3.34070069]
[1752592072924,0.1664,2993.8,2993.3,3.50710069]
[1752592073222,3.33982403,2994.2,2993.6,3.34039015]
[1752592073374,1.4441,2994.3,2993.7,0.03340348]
[1752592073574,1.4441,2994.3,2994.1,0.1664]
[1752592073875,1.4441,2994.3,2993.0,3.34102427]
[1752592073876,3.33979026,2994.2,2993.0,3.34102427]
[1752592074108,1.4441,2994.3,2994.0,0.1664]
[1752592074925,4.78385929,2994.3,2994.0,0.1664]
[1752592075124,4.78382727,2994.3,2994.0,0.1664]
[1752592075353,10.0,2994.2,2994.0,0.1664]
[1752592075515,3.34045793,2993.7,2993.2,5.849]
[1752592075840,3.33984477,2994.2,2993.2,5.849]
[1752592076039,3.33984477,2994.2,2992.7,1.4271]
[1752592076040,3.34068993,2993.4,2992.7,1.4271]
[1752592076262,3.34001336,2994.0,2992.6,5.85]
[1752592076263,3.34107673,2993.1,2992.6,5.85]
[1752592076401,3.34140308,2992.8,2992.6,0.002]
[1752592076750,3.34146422,2992.7,2992.6,0.002]
[1752592077044,3.34137658,2992.8,2992.6,0.002]
[1752592077540,3.3412768,2992.9,2992.6,0.002]
[1752592077838,3.34080109,2993.3,2992.6,3.34353372]
[1752592078035,3.34080109,2993.3,2992.7,3.34146393]
[1752592078258,1.5507,2993.5,2992.8,0.03341352]
[1752592078545,0.82898095,2994.3,2992.9,3.65088229]
[1752592078546,1.4725,2993.9,2992.9,3.65088229]
[1752592078745,1.4725,2993.9,2993.0,0.3431326]
[1752592078900,3.34043017,2993.7,2993.1,0.30972131]
[1752592079096,3.34048962,2993.6,2993.2,0.30972131]
[1752592079334,1.4725,2993.9,2993.3,0.30972131]
[1752592079504,4.48753191,2993.8,2993.4,0.30984911]
[1752592079705,3.34024461,2993.8,2993.5,0.30984911]
[1752592079914,2.25128095,2994.3,2993.6,0.30984911]
[1752592080143,1.4223,2994.3,2993.7,0.30984911]
[1752592080341,1.4233,2994.7,2993.8,0.30984911]
[1752592080533,1.4233,2994.7,2993.9,0.30984911]
[1752592080842,3.3399018,2994.1,2994.0,0.30984911]
[1752592081046,0.001,2994.7,2994.0,0.30984911]
[1752592081336,0.001,2994.7,2994.1,0.30984911]
[1752592081548,3.33945566,2994.5,2994.2,0.30984911]
[1752592081730,3.33945566,2994.5,2993.8,5.844]
[1752592081731,0.001,2994.7,2994.3,0.30984911]
[1752592081929,4.7535493,2994.5,2994.4,0.30984911]
[1752592082147,5.56293869,2994.5,2994.4,0.30984911]
[1752592082319,15.56293869,2994.5,2994.4,0.30984911]
[1752592082519,45.56293869,2994.5,2994.4,0.30984911]
[1752592082818,14.7535493,2994.5,2994.4,0.30984911]
[1752592083039,0.001,2994.7,2994.4,0.30984911]
[1752592083327,0.001,2994.7,2994.5,0.34324366]
[1752592083648,0.001,2994.7,2994.6,0.30984911]
[1752592084003,0.001,2994.7,2994.6,3.64919326]
[1752592084206,0.001,2994.7,2994.6,0.30984911]
[1752592085138,3.34023264,2994.7,2994.6,0.30984911]
[1752592085342,0.001,2994.7,2994.6,0.30984911]
[1752592085547,0.001,2994.7,2994.6,0.47624911]
[1752592086192,0.001,2994.7,2994.6,11.74649326]
[1752592086357,0.001,2994.7,2994.6,23.58903533]
[1752592086661,0.04,2994.9,2994.7,10.55]
[1752592086812,1.3481,2996.4,2994.9,10.55]
[1752592087021,1.5145,2996.4,2995.8,3.33800654]
[1752592087209,1.5145,2996.4,2995.8,3.81425565]
[1752592087428,0.1664,2996.7,2995.8,5.15001137]
[1752592087726,1.3481,2996.8,2995.8,5.11663131]
[1752592087930,3.33723484,2996.5,2995.8,5.15001137]
[1752592088127,1.3481,2996.8,2995.8,5.15001137]
[1752592088128,1.3481,2996.8,2995.8,0.47624911]
[1752592088311,0.1664,2996.3,2995.8,0.47624911]
[1752592088523,1.3481,2996.8,2995.8,10.20125565]
[1752592088738,1.5145,2996.8,2995.8,10.20125565]
[1752592088913,3.33690964,2996.8,2995.8,10.20125565]
[1752592089116,3.33719874,2996.6,2995.8,4.06268847]
[1752592089447,0.04,2996.9,2995.8,4.06268847]
[1752592089448,1e-08,2995.9,2995.8,21.87806853]
[1752592089665,1e-08,2995.9,2995.8,21.84468847]
[1752592089868,1e-08,2995.9,2995.8,15.20035061]
[1752592090114,1e-08,2995.9,2995.8,2.12068193]
[1752592090276,1e-08,2995.9,2995.8,8.19583282]
[1752592090462,1e-08,2995.9,2995.8,6.0014]
[1752592090960,3.33789513,2995.9,2995.8,0.1664]
[1752592091225,3.33835556,2995.5,2995.0,1.396]
[1752592091506,3.33806727,2995.8,2995.5,0.1664]
[1752592091802,3.3379409,2995.9,2995.5,6.0004]
[1752592092102,3.3379409,2995.9,2995.7,0.1664]
[1752592092103,3.33800654,2995.8,2995.7,0.1664]
[1752592092298,3.33800654,2995.8,2995.5,5.833]
[1752592092299,3.3382294,2995.6,2995.5,5.833]
[1752592092472,3.33856374,2995.3,2995.2,0.1664]
[1752592092662,0.66762359,2995.6,2994.6,1.396]
[1752592092994,0.1664,2995.3,2994.8,0.1664]
[1752592093194,0.1664,2995.4,2994.9,0.1664]
[1752592093402,1e-08,2995.9,2995.2,0.1664]
[1752592093403,0.1664,2995.7,2995.2,0.1664]
[1752592093565,3.33885853,2995.1,2994.7,5.832]
[1752592093761,3.33874614,2995.2,2994.7,5.832]
[1752592093961,3.33856374,2995.3,2994.9,0.1664]
[1752592094163,0.1664,2995.4,2994.9,0.76614]
[1752592094399,0.1664,2995.7,2995.2,0.1664]
[1752592094696,10.1664,2996.0,2995.3,5.86438563]
[1752592094895,0.1664,2996.0,2995.6,0.1664]
[1752592095195,1.3801,2996.3,2995.3,0.03338563]
[1752592095196,3.33892086,2995.9,2995.8,0.1664]
[1752592095358,3.33892086,2995.9,2995.8,5.83]
[1752592095771,3.33800654,2995.8,2995.3,1.3347]
[1752592096103,0.00100001,2995.9,2995.5,0.55]
[1752592096288,0.00100001,2995.9,2995.8,3.33800654]
[1752592096490,0.00100001,2995.9,2995.8,3.3713866]
[1752592097002,0.00100001,2995.9,2995.8,5.829]
[1752592097202,0.00100001,2995.9,2995.7,0.1664]
[1752592097203,3.33890314,2995.9,2995.7,0.1664]
[1752592097404,0.00100001,2995.9,2995.8,5.829]
[1752592098204,0.00100001,2995.9,2995.8,5.86238006]
[1752592098708,3.33889513,2995.9,2995.8,5.827]
[1752592098872,0.00100001,2995.9,2995.8,5.827]
[1752592099389,3.33800654,2995.8,2995.7,0.1664]
[1752592099611,3.33801221,2995.8,2995.6,5.827]
[1752592099800,3.33811796,2995.7,2995.6,5.827]
[1752592100000,3.3382294,2995.6,2995.5,0.1664]
[1752592100170,3.33816295,2995.7,2995.6,5.826]
[1752592100370,0.00100001,2995.9,2995.6,5.826]